bitfinex/quotes_SOLUSD_20220117
["timestamp","ask_amount","ask_price","bid_price","bid_amount"]
[1642447252051,10.7556,139.51,139.46,0.25]
[1642447252752,0.25,139.5,139.45,6.0]
[1642447253151,0.25,139.5,139.44,117.7]
[1642447253152,10.7576,139.49,139.44,117.7]
[1642447253551,54.30542809,139.49,139.44,117.7]
[1642447254156,10.7576,139.49,139.44,117.7]
[1642447254353,10.7576,139.49,139.45,0.25]
[1642447256181,10.7576,139.49,139.44,6.0]
[1642447256378,49.29044137,139.48,139.42,42.61410069]
[1642447256579,49.29044137,139.48,139.43,0.25]
[1642447257380,10.7576,139.49,139.43,0.25]
[1642447258384,10.7576,139.49,139.43,30.98252211]
[1642447258784,10.7576,139.49,139.43,36.98252211]
[1642447259282,10.7576,139.49,139.43,6.25]
[1642447259485,10.7576,139.49,139.43,0.25]
[1642447261689,12.77609212,139.51,139.43,0.25]
[1642447261889,12.77609212,139.51,139.43,10.54]
[1642447262289,12.77609212,139.51,139.43,16.8]
[1642447262490,12.77609212,139.51,139.44,24.6582]
[1642447262690,2.02009212,139.51,139.45,21.61021374]
[1642447262889,2.02009212,139.51,139.45,27.86021374]
[1642447263591,2.02009212,139.51,139.45,6.25]
[1642447263791,12.77559212,139.51,139.46,23.1804]
[1642447263992,10.7555,139.51,139.46,23.1804]
[1642447264191,10.7555,139.51,139.47,0.25]
[1642447264794,12.77559212,139.51,139.47,0.25]
[1642447266192,41.7701467,139.5,139.47,0.25]
[1642447266393,3.03219997,139.49,139.47,0.25]
[1642447267595,3.03219997,139.48,139.47,0.25]
[1642447269099,3.03219997,139.49,139.47,0.25]
[1642447270097,3.03219997,139.48,139.47,0.25]
[1642447270299,3.03219997,139.49,139.47,0.25]
[1642447271098,41.7701467,139.5,139.47,0.25]
[1642447271303,3.03219997,139.49,139.44,0.25]
[1642447274204,41.7701467,139.5,139.44,0.25]
[1642447275036,52.5263467,139.5,139.44,0.25]
[1642447276239,54.54643882,139.5,139.44,0.25]
[1642447277037,1.20293084,139.49,139.43,40.0151]
[1642447277238,1.45293084,139.49,139.42,2.04410069]
[1642447277439,10.7586,139.47,139.42,2.04410069]
[1642447277839,19.1336,139.47,139.42,2.04410069]
[1642447278041,44.00671646,139.46,139.42,2.04410069]
[1642447278743,44.00671646,139.46,139.41,2.04410069]
[1642447278939,44.00671646,139.46,139.42,6.0]
[1642447279139,44.00671646,139.46,139.42,0.25]
[1642447279841,54.76621646,139.46,139.42,0.25]
[1642447280043,54.76621646,139.46,139.4,2.04410069]
[1642447280241,54.76621646,139.46,139.41,0.25]
[1642447281442,0.25,139.45,139.39,8.04410069]
[1642447281744,10.7612,139.44,139.39,8.04410069]
[1642447281941,10.7612,139.44,139.39,2.04410069]
[1642447282141,0.25,139.43,139.39,2.04410069]
[1642447283147,0.25,139.45,139.39,2.04410069]
[1642447283348,10.7617,139.43,139.39,2.04410069]
[1642447283548,0.25,139.45,139.39,42.76623538]
[1642447283750,0.25,139.45,139.37,23.2668]
[1642447283751,2.27009212,139.45,139.37,23.2668]
[1642447283948,2.27009212,139.45,139.38,0.25]
[1642447284548,13.03059212,139.45,139.38,0.25]
[1642447284749,12.78059212,139.45,139.38,47.92252853]
[1642447284949,2.02009212,139.45,139.38,53.87052853]
[1642447285150,2.02009212,139.45,139.39,23.5834]
[1642447285350,2.02009212,139.45,139.39,29.8434]
[1642447285550,2.02009212,139.45,139.39,29.5834]
[1642447285750,2.02009212,139.46,139.4,0.25]
[1642447286049,0.25,139.45,139.39,29.5834]
[1642447286649,47.57003491,139.45,139.39,29.5834]
[1642447287052,58.33023491,139.45,139.39,29.5834]
[1642447288756,58.33023491,139.45,139.39,6.0]
[1642447288955,129.98023491,139.45,139.37,8.04410069]
[1642447289154,129.98023491,139.45,139.37,2.04410069]
[1642447289356,146.27023491,139.45,139.37,2.04410069]
[1642447290055,10.7648,139.41,139.34,2.04410069]
[1642447290255,0.25,139.4,139.34,2.04410069]
[1642447290654,0.25,139.4,139.34,8.04410069]
[1642447291056,0.25,139.4,139.34,6.0]
[1642447291361,0.25,139.4,139.33,8.04410069]
[1642447291556,10.7648,139.39,139.33,2.04410069]
[1642447291756,42.90601245,139.38,139.34,0.25]
[1642447294889,42.90601245,139.38,139.33,7.79410069]
[1642447295090,42.90601245,139.38,139.33,6.0]
[1642447295289,42.90601245,139.38,139.32,28.9285]
[1642447296090,53.67151245,139.38,139.32,28.9285]
[1642447296291,53.67151245,139.38,139.33,0.25]
[1642447296892,53.67151245,139.38,139.32,28.9285]
[1642447298493,53.67151245,139.38,139.32,6.0]
[1642447298693,53.67151245,139.38,139.31,16.29]
[1642447300294,0.25,139.37,139.31,16.29]
[1642447300496,11.0166,139.37,139.31,16.29]
[1642447301196,11.0166,139.37,139.31,6.0]
[1642447301495,11.0166,139.37,139.29,52.7478]
[1642447303697,17.0166,139.37,139.29,52.7478]
[1642447304496,11.0166,139.37,139.29,52.7478]
[1642447305298,17.0166,139.37,139.29,52.7478]
[1642447307701,71.65,139.36,139.29,52.7478]
[1642447307903,10.7691,139.34,139.29,6.0]
[1642447308299,0.25,139.33,139.24,40.6645]
[1642447308500,0.25,139.33,139.25,0.25]
[1642447308701,0.25,139.33,139.25,36.38094669]
[1642447308903,0.25,139.34,139.25,42.64094669]
[1642447309101,0.25,139.34,139.26,24.5792]
[1642447309301,0.25,139.34,139.27,0.25]
[1642447309502,10.7697,139.33,139.27,0.25]
[1642447310801,10.7697,139.33,139.26,30.5792]
[1642447312705,10.7697,139.33,139.27,0.25]
[1642447314808,10.7684,139.35,139.27,0.25]
[1642447315811,46.9066689,139.34,139.27,0.25]
[1642447316011,46.9066689,139.34,139.27,10.54]
[1642447316212,46.9066689,139.34,139.28,23.1667]
[1642447316414,46.9066689,139.34,139.29,0.25]
[1642447316612,10.7684,139.35,139.29,0.25]
[1642447319020,36.84458607,139.37,139.29,0.25]
[1642447319021,47.61148607,139.37,139.29,0.25]
[1642447319221,0.25,139.36,139.29,0.25]
[1642447321123,11.0172,139.36,139.29,0.25]
[1642447321321,35.92577038,139.35,139.29,0.25]
[1642447321521,11.0172,139.36,139.29,0.25]
[1642447325933,11.0172,139.36,139.28,59.31548598]
[1642447326126,11.0172,139.36,139.28,69.60548598]
[1642447327257,11.0172,139.36,139.29,0.25]
[1642447330162,0.25,139.36,139.29,0.25]
[1642447336772,10.7665,139.37,139.29,0.25]
[1642447336971,10.7653,139.39,139.29,0.25]
[1642447337173,10.7653,139.39,139.3,10.29]
[1642447337373,0.25,139.38,139.31,36.38094669]
[1642447337771,0.25,139.38,139.31,42.64094669]
[1642447337973,0.25,139.38,139.32,23.9055]
[1642447338271,0.25,139.38,139.33,0.25]
[1642447338473,54.37878696,139.39,139.33,0.25]
[1642447338671,10.7638,139.41,139.33,0.25]
[1642447339572,48.99092445,139.4,139.33,0.25]
[1642447339771,0.25,139.39,139.33,0.25]
[1642447339972,59.75512445,139.4,139.33,0.25]
[1642447341373,11.0152,139.39,139.33,0.25]
[1642447353787,10.7652,139.39,139.33,0.25]
[1642447355086,48.99092445,139.4,139.32,30.1655]
[1642447355087,11.0158,139.38,139.32,29.9055]
[1642447355587,41.72968899,139.37,139.32,6.0]
[1642447355787,0.25,139.36,139.28,27.63031129]
[1642447355986,41.72968899,139.37,139.28,27.88031129]
[1642447356186,41.72968899,139.37,139.28,34.14031129]
[1642447356587,41.72968899,139.37,139.29,24.4371]
[1642447356789,41.72968899,139.37,139.3,0.25]
[1642447357594,52.49628899,139.37,139.3,0.25]
[1642447363121,41.72968899,139.37,139.3,0.25]
[1642447368825,41.72968899,139.37,139.29,104.10311338]
[1642447369626,41.72968899,139.37,139.29,114.86731338]
[1642447369926,41.72968899,139.37,139.3,10.29]
[1642447370129,41.72968899,139.37,139.3,10.54]
[1642447370327,41.72968899,139.37,139.3,18.55601338]
[1642447371026,41.72968899,139.37,139.31,38.38942138]
[1642447371226,41.72968899,139.37,139.31,61.96242138]
[1642447371426,41.72968899,139.37,139.32,0.25]
[1642447373026,10.765,139.39,139.32,0.25]
[1642447373228,0.25,139.38,139.32,0.25]
[1642447373828,3.87416919,139.42,139.32,71.9]
[1642447374027,51.66761243,139.42,139.33,39.15625935]
[1642447374431,51.66761243,139.42,139.34,0.25]
[1642447374829,51.66761243,139.42,139.34,24.844]
[1642447375029,51.66761243,139.42,139.34,31.104]
[1642447375430,47.79344324,139.42,139.34,31.104]
[1642447375930,47.79344324,139.42,139.36,0.02261921]
[1642447378632,58.55594324,139.42,139.36,0.02261921]
[1642447381034,58.55594324,139.42,139.34,30.86658041]
[1642447385844,58.55594324,139.42,139.36,0.02261921]
[1642447386246,0.25,139.41,139.36,0.02261921]
[1642447386446,11.0138,139.41,139.36,0.02261921]
[1642447390981,11.0138,139.41,139.34,30.86658041]
[1642447393782,11.0138,139.41,139.34,31.12658041]
[1642447393983,0.25,139.41,139.35,17.53428637]
[1642447394384,0.25,139.41,139.36,0.25]
[1642447394684,47.79344324,139.42,139.36,0.25]
[1642447395486,46.79344324,139.42,139.36,0.25]
[1642447395886,46.79344324,139.42,139.38,0.02258041]
[1642447397486,0.25,139.41,139.38,0.02258041]
[1642447397686,5.56439994,139.4,139.38,0.02258041]
[1642447398988,5.56439994,139.4,139.38,0.52258041]
[1642447399790,57.55584324,139.42,139.38,0.52258041]
[1642447400591,46.79344324,139.42,139.38,0.52258041]
[1642447403896,46.79344324,139.42,139.38,0.02258041]
[1642447405895,46.79344324,139.42,139.35,0.27254163]
[1642447410800,46.79344324,139.42,139.37,0.02259981]
[1642447415138,2.04603794,139.41,139.37,0.02259981]
[1642447415938,2.04603794,139.41,139.35,0.27256102]
[1642447418643,2.04603794,139.41,139.35,0.02256102]
[1642447420347,2.04603794,139.41,139.35,0.27256102]
[1642447420948,2.04603794,139.41,139.37,0.02259981]
[1642447423048,2.04603794,139.4,139.37,0.02259981]
[1642447423448,5.56439994,139.39,139.37,0.02259981]
[1642447423649,50.56156934,139.39,139.37,0.02259981]
[1642447424049,61.32636934,139.39,139.37,0.02259981]
[1642447424749,16.32919994,139.39,139.37,0.02259981]
[1642447425150,5.56439994,139.39,139.37,0.02259981]
[1642447425550,2.04603794,139.38,139.37,0.02259981]
[1642447425951,2.04603794,139.38,139.34,17.85013425]
[1642447426353,2.04603794,139.38,139.34,24.11013425]
[1642447426752,2.04603794,139.38,139.35,0.25]
[1642447426953,5.56439994,139.37,139.35,0.25]
[1642447427154,2.04603794,139.39,139.36,0.5]
[1642447429059,2.04603794,139.4,139.36,0.5]
[1642447430955,2.04603794,139.4,139.38,0.02258041]
[1642447431156,5.56439994,139.39,139.38,0.02258041]
[1642447433488,2.04603794,139.4,139.38,0.52258041]
[1642447433890,2.04603794,139.4,139.38,0.77258041]
[1642447434189,2.04603794,139.4,139.38,0.52258041]
[1642447434589,2.04603794,139.41,139.38,0.52258041]
[1642447435494,2.04603794,139.4,139.38,0.52258041]
[1642447436390,37.80465575,139.4,139.38,0.52258041]
[1642447436590,5.56439994,139.39,139.38,0.52258041]
[1642447436789,5.56439994,139.39,139.38,0.02258041]
[1642447438591,5.56439994,139.39,139.38,0.52258041]
[1642447438791,2.04603794,139.4,139.38,0.02258041]
[1642447440108,2.53219997,139.39,139.38,0.52258041]
[1642447440308,2.04603794,139.4,139.38,0.52258041]
[1642447443743,2.04603794,139.4,139.38,0.02258041]
[1642447443944,5.81439994,139.39,139.38,0.02258041]
[1642447444645,5.56439994,139.39,139.38,0.02258041]
[1642447444845,2.04603794,139.4,139.38,0.52258041]
[1642447445547,2.04603794,139.39,139.38,0.52258041]
[1642447446247,57.77213066,139.42,139.38,0.52258041]
[1642447446248,2.04603794,139.4,139.38,0.52258041]
[1642447449648,2.04603794,139.41,139.38,0.52258041]
[1642447451250,5.56439994,139.4,139.38,0.52258041]
[1642447451449,5.56439994,139.4,139.38,0.02258041]
[1642447452948,5.56439994,139.4,139.38,0.52258041]
[1642447453953,2.04603794,139.41,139.38,0.52258041]
[1642447455853,2.04603794,139.41,139.4,0.02254163]
[1642447456057,2.04603794,139.42,139.4,0.02254163]
[1642447456455,5.56439994,139.41,139.4,0.02254163]
[1642447458663,7.61052886,139.41,139.4,0.02254163]
[1642447460861,4.57832889,139.41,139.36,0.27254163]
[1642447461061,41.69883578,139.4,139.36,0.27254163]
[1642447462863,43.7449647,139.4,139.36,0.27254163]
[1642447464565,2.04612892,139.4,139.36,0.27254163]
[1642447465666,2.04612892,139.4,139.36,22.86510746]
[1642447465971,2.04612892,139.4,139.38,0.02258041]
[1642447466468,2.04612892,139.4,139.39,0.5]
[1642447466766,2.04612892,139.41,139.39,0.5]
[1642447468169,2.04612892,139.42,139.39,0.5]
[1642447470994,2.04612892,139.42,139.41,0.02252224]
[1642447471197,2.04612892,139.42,139.41,0.52252224]
[1642447471397,2.04612892,139.42,139.41,0.77252224]
[1642447471600,2.04612892,139.44,139.41,0.77252224]
[1642447471797,2.04612892,139.44,139.41,24.35042224]
[1642447471995,2.04612892,139.44,139.41,24.61042224]
[1642447472195,2.04612892,139.44,139.41,30.61042224]
[1642447472598,2.04612892,139.46,139.41,30.61042224]
[1642447473596,2.04612892,139.45,139.41,30.61042224]
[1642447474997,43.72765422,139.45,139.41,30.61042224]
[1642447475897,43.72765422,139.45,139.43,0.02248347]
[1642447476098,46.25985419,139.45,139.43,0.02248347]
[1642447476296,49.29205416,139.45,139.43,0.02248347]
[1642447476698,0.25,139.44,139.43,0.02248347]
[1642447477905,40.2411492,139.45,139.43,0.02248347]
[1642447478105,37.70894923,139.45,139.44,0.5]
[1642447478305,43.27334917,139.45,139.43,0.02248347]
[1642447481012,37.70894923,139.45,139.44,0.5]
[1642447481211,37.70894923,139.45,139.37,44.4264057]
[1642447481510,26.94874923,139.45,139.37,44.4264057]
[1642447481710,26.94874923,139.45,139.38,24.8226]
[1642447481911,26.94874923,139.45,139.39,0.25]
[1642447482310,2.04571221,139.43,139.39,0.25]
[1642447484912,2.04571221,139.44,139.39,0.25]
[1642447485512,2.04571221,139.43,139.39,0.25]
[1642447485915,2.04571221,139.43,139.41,0.02252224]
[1642447487215,2.04571221,139.43,139.42,0.5]
[1642447487415,2.04571221,139.43,139.41,0.02252224]
[1642447487715,5.56439994,139.42,139.41,0.02252224]
[1642447488015,2.04571221,139.44,139.41,0.02252224]
[1642447489116,2.04571221,139.44,139.42,0.5]
[1642447489519,5.56439994,139.43,139.42,0.5]
[1642447490318,2.04571221,139.44,139.42,0.5]
[1642447490919,2.04571221,139.44,139.42,0.52250285]
[1642447492419,2.04571221,139.45,139.42,0.52250285]
[1642447493420,2.04571221,139.44,139.42,0.52250285]
[1642447497650,5.56439994,139.43,139.42,0.52250285]
[1642447498051,2.04571221,139.44,139.42,0.52250285]
[1642447499251,47.29316204,139.44,139.42,0.52250285]
[1642447499551,5.56439994,139.43,139.42,0.02250285]
[1642447500953,5.56439994,139.43,139.4,0.52248347]
[1642447501154,7.61011215,139.43,139.4,0.52248347]
[1642447501753,0.25,139.42,139.4,0.52248347]
[1642447501954,11.0125,139.42,139.4,0.52248347]
[1642447502355,37.27229,139.41,139.4,0.52248347]
[1642447503356,39.31800221,139.41,139.4,0.52248347]
[1642447505559,2.04571221,139.41,139.4,0.52248347]
[1642447507063,7.61011215,139.41,139.4,0.52248347]
[1642447509664,5.56439994,139.41,139.4,0.52248347]
[1642447517874,2.53219997,139.41,139.4,0.52248347]
[1642447518074,2.04571221,139.43,139.4,0.52248347]
[1642447518275,2.04571221,139.43,139.4,1.02248347]
[1642447518775,2.04571221,139.43,139.4,14.89048347]
[1642447518975,2.04571221,139.43,139.41,37.28422459]
[1642447519376,2.04571221,139.43,139.42,0.5]
[1642447520677,2.04571221,139.43,139.42,0.75]
[1642447520879,2.04571221,139.43,139.42,0.77250285]
[1642447521181,2.04571221,139.45,139.42,0.77250285]
[1642447521379,2.04571221,139.45,139.42,0.52250285]
[1642447522278,2.04571221,139.45,139.42,0.77250285]
[1642447523879,2.04571221,139.46,139.42,0.77250285]
[1642447525479,2.04571221,139.45,139.42,0.77250285]
[1642447525885,2.04571221,139.45,139.44,0.02246409]
[1642447526289,2.04571221,139.45,139.44,0.52246409]
[1642447527088,2.04571221,139.45,139.44,39.18504096]
[1642447527287,2.04571221,139.45,139.44,39.43504096]
[1642447527887,2.04571221,139.46,139.44,39.43504096]
[1642447528288,2.04571221,139.46,139.45,0.25]
[1642447529488,2.04571221,139.47,139.45,0.25]
[1642447529890,2.04571221,139.47,139.44,0.52246409]
[1642447530088,2.04571221,139.47,139.44,0.02246409]
[1642447530487,5.56439994,139.46,139.44,0.02246409]
[1642447530690,36.69222385,139.45,139.44,0.02246409]
[1642447530897,36.69222385,139.45,139.41,30.94112534]
[1642447531791,36.69222385,139.45,139.42,0.25]
[1642447532193,5.56439994,139.44,139.42,0.25]
[1642447532590,5.56439994,139.44,139.41,31.20112534]
[1642447533894,5.56439994,139.44,139.42,0.75]
[1642447534094,5.56439994,139.44,139.42,0.25]
[1642447535897,5.56439994,139.44,139.43,0.02248347]
[1642447537923,2.53219997,139.44,139.43,0.52248347]
[1642447538521,2.53219997,139.44,139.43,0.02248347]
[1642447539422,2.53219997,139.44,139.43,0.52248347]
[1642447540323,2.04571221,139.47,139.43,0.52248347]
[1642447540725,2.04571221,139.47,139.43,0.02248347]
[1642447540925,12.80431221,139.47,139.41,30.94118347]
[1642447541729,2.04571221,139.46,139.41,77.43278121]
[1642447542224,2.04571221,139.46,139.41,87.98278121]
[1642447542824,2.04571221,139.46,139.42,0.25]
[1642447543025,2.04571221,139.48,139.42,0.25]
[1642447543225,2.04571221,139.48,139.41,87.98278121]
[1642447544125,2.04571221,139.48,139.42,71.65]
[1642447544329,2.04571221,139.48,139.42,77.91]
[1642447544729,2.04571221,139.48,139.43,0.25]
[1642447545628,2.04571221,139.48,139.43,10.54]
[1642447545831,2.04571221,139.48,139.44,0.02246409]
[1642447546129,2.04571221,139.48,139.44,24.22956409]
[1642447546328,2.04571221,139.48,139.45,0.25]
[1642447546530,2.04571221,139.48,139.46,0.5]
[1642447547031,2.04571221,139.49,139.46,0.5]
[1642447551136,2.04571221,139.49,139.48,0.0223866]
[1642447551336,7.61011215,139.49,139.48,0.0223866]
[1642447553237,5.56439994,139.49,139.48,0.0223866]
[1642447553738,79.51822831,139.52,139.48,0.5223866]
[1642447553941,55.67142831,139.52,139.48,0.5223866]
[1642447554639,3.87416919,139.51,139.48,0.5223866]
[1642447554839,5.56439994,139.5,139.48,0.5223866]
[1642447555041,3.87416919,139.51,139.48,0.5223866]
[1642447555440,2.04475565,139.49,139.48,0.5223866]
[1642447556041,2.04475565,139.49,139.48,0.5]
[1642447556441,7.60915559,139.49,139.45,0.25]
[1642447557042,5.07695562,139.49,139.45,0.25]
[1642447557241,2.04475565,139.48,139.45,0.25]
[1642447557547,2.04475565,139.48,139.46,0.5]
[1642447560949,2.04475565,139.48,139.47,0.02240597]
[1642447562946,2.04475565,139.49,139.47,0.02240597]
[1642447563379,2.04475565,139.49,139.48,0.5]
[1642447565852,2.04475565,139.49,139.48,0.5223866]
[1642447568752,7.60915559,139.49,139.48,0.0223866]
[1642447569953,2.04475565,139.49,139.48,0.5223866]
[1642447571453,2.04475565,139.5,139.48,0.5223866]
[1642447575756,2.04475565,139.5,139.48,0.0223866]
[1642447576557,41.27464355,139.49,139.48,0.0223866]
[1642447576757,44.30684352,139.49,139.48,0.0223866]
[1642447578986,46.35159917,139.49,139.48,0.0223866]
[1642447580889,46.35159917,139.49,139.44,0.2723866]
[1642447583092,46.35159917,139.49,139.44,10.5623866]
[1642447583292,46.35159917,139.49,139.44,16.8223866]
[1642447583499,40.78719923,139.49,139.44,16.8223866]
[1642447585198,2.04475565,139.49,139.44,16.8223866]
[1642447585998,2.04475565,139.5,139.46,0.02242534]
[1642447586797,2.04475565,139.5,139.46,0.27242534]
[1642447589498,38.29046972,139.51,139.46,0.27242534]
[1642447589699,38.29046972,139.51,139.46,0.02242534]
[1642447590800,2.04475565,139.5,139.46,0.02242534]
[1642447590999,2.04475565,139.5,139.44,16.5723866]
[1642447591402,2.04475565,139.5,139.45,0.25]
[1642447591600,2.04475565,139.49,139.45,0.25]
[1642447592403,36.24571407,139.51,139.45,0.25]
[1642447592404,2.04475565,139.5,139.45,0.25]
[1642447594903,36.24571407,139.51,139.5,5.12524435]
[1642447595105,41.81011401,139.51,139.5,5.12524435]
[1642447600011,41.81011401,139.51,139.47,0.02240597]
[1642447600411,52.56551401,139.51,139.47,0.02240597]
[1642447600811,0.25,139.5,139.47,0.02240597]
[1642447601012,0.25,139.5,139.43,0.25]
[1642447601612,10.7573,139.49,139.43,0.25]
[1642447601815,6.0,139.49,139.43,0.25]
[1642447602516,46.11988326,139.51,139.43,0.25]
[1642447603516,53.00151407,139.51,139.43,0.25]
[1642447605940,53.00151407,139.51,139.45,0.02244471]
[1642447608243,0.25,139.5,139.45,0.02244471]
[1642447608542,11.0067,139.5,139.45,0.02244471]
[1642447608942,17.0067,139.5,139.45,0.02244471]
[1642447610949,17.0067,139.5,139.43,0.27240597]
[1642447615849,17.0067,139.5,139.45,0.02244471]
[1642447617254,16.7567,139.5,139.45,0.02244471]
[1642447618655,6.0,139.5,139.45,0.02244471]
[1642447618853,42.24571407,139.51,139.45,0.02244471]
[1642447619053,6.0,139.5,139.45,0.02244471]
[1642447619256,0.25,139.5,139.45,0.02244471]
[1642447620756,0.25,139.5,139.45,35.07569273]
[1642447620957,0.25,139.5,139.45,35.05324802]
[1642447621158,0.25,139.5,139.45,35.31324802]
[1642447621370,1.4745328,139.47,139.45,35.31324802]
[1642447621560,1.4745328,139.47,139.46,0.5]
[1642447625864,1.4745328,139.47,139.46,0.52242534]
[1642447626066,1.25749627,139.53,139.46,0.52242534]
[1642447626264,9.87416919,139.54,139.46,10.81242534]
[1642447626564,3.87416919,139.54,139.46,16.81242534]
[1642447626768,3.87416919,139.54,139.47,22.9435]
[1642447626968,3.87416919,139.54,139.48,48.50621982]
[1642447627171,3.87416919,139.54,139.48,56.63384683]
[1642447627368,3.87416919,139.54,139.49,0.25]
[1642447627569,3.87416919,139.54,139.49,10.54]
[1642447627767,3.87416919,139.54,139.49,16.8]
[1642447627969,3.87416919,139.54,139.49,88.45]
[1642447628169,3.87416919,139.57,139.49,88.45]
[1642447628367,3.87416919,139.57,139.49,41.6325]
[1642447629469,52.37257892,139.59,139.49,41.6325]
[1642447629672,3.87416919,139.59,139.49,41.6325]
[1642447630080,3.87416919,139.59,139.49,41.3725]
[1642447630672,7.96197711,139.59,139.49,41.3725]
[1642447631075,7.96197711,139.59,139.51,0.02232851]
[1642447631676,18.71117711,139.59,139.51,0.02232851]
[1642447632274,4.12416919,139.58,139.51,0.02232851]
[1642447632475,46.99774116,139.57,139.51,0.02232851]
[1642447633085,3.87416919,139.58,139.51,0.02232851]
[1642447634279,50.63245667,139.58,139.51,0.02232851]
[1642447634679,50.63245667,139.58,139.51,10.31232851]
[1642447634879,50.63245667,139.58,139.52,44.47058796]
[1642447634880,46.54447358,139.58,139.52,44.47058796]
[1642447635380,46.54447358,139.58,139.52,44.73058796]
[1642447635583,46.54447358,139.58,139.52,50.73058796]
[1642447635780,46.54447358,139.58,139.52,44.73058796]
[1642447636080,46.54447358,139.58,139.53,0.02228979]
[1642447636283,3.87416919,139.58,139.53,0.02228979]
[1642447637190,7.96207327,139.58,139.53,0.02228979]
[1642447637789,14.62336919,139.59,139.53,0.02228979]
[1642447638615,3.87416919,139.59,139.53,0.02228979]
[1642447638818,3.87416919,139.59,139.53,22.58848979]
[1642447639017,3.87416919,139.59,139.53,32.87848979]
[1642447639214,3.87416919,139.59,139.54,0.25]
[1642447639616,3.87416919,139.59,139.53,39.13848979]
[1642447639915,3.87416919,139.61,139.53,39.13848979]
[1642447640817,3.87416919,139.61,139.54,0.25]
[1642447641014,3.87416919,139.61,139.56,0.02223174]
[1642447641216,3.87416919,139.62,139.56,0.02223174]
[1642447642418,7.96094879,139.62,139.56,0.02223174]
[1642447643423,0.25,139.61,139.56,0.02223174]
[1642447643619,8.465,139.61,139.56,0.02223174]
[1642447643819,42.84414042,139.6,139.56,0.02223174]
[1642447644317,0.25,139.59,139.56,0.02223174]
[1642447644519,5.56439994,139.58,139.56,0.02223174]
[1642447645521,43.65843746,139.57,139.56,0.02223174]
[1642447645724,43.90843746,139.57,139.56,0.02223174]
[1642447645923,43.90843746,139.57,139.52,0.02219306]
[1642447646925,43.65843746,139.57,139.52,0.02219306]
[1642447648431,0.25,139.56,139.52,0.02219306]
[1642447648627,43.65843746,139.57,139.52,0.02219306]
[1642447649224,10.75,139.58,139.52,49.12909629]
[1642447649426,0.25,139.57,139.52,49.12909629]
[1642447649653,10.75,139.58,139.52,49.12909629]
[1642447649828,10.75,139.58,139.53,0.25]
[1642447650830,3.87416919,139.59,139.53,0.25]
[1642447651031,14.62306919,139.6,139.54,0.02227044]
[1642447651230,0.25,139.58,139.54,0.02227044]
[1642447652430,0.25,139.59,139.54,0.02227044]
[1642447652631,10.9991,139.59,139.54,0.02227044]
[1642447653631,0.25,139.59,139.54,0.02227044]
[1642447653827,3.87416919,139.6,139.54,0.02227044]
[1642447654629,3.87416919,139.6,139.54,23.59387044]
[1642447654829,0.25,139.59,139.54,23.59387044]
[1642447655030,0.25,139.59,139.54,0.02227044]
[1642447655831,0.25,139.59,139.5,24.9286]
[1642447656333,10.9993,139.59,139.51,43.42956177]
[1642447656733,40.80962124,139.58,139.51,43.68956177]
[1642447657233,0.25,139.57,139.51,43.68956177]
[1642447658033,0.25,139.57,139.49,0.02223174]
[1642447658234,71.9,139.57,139.49,0.02223174]
[1642447658633,79.65619958,139.57,139.49,0.02223174]
[1642447658837,77.9,139.57,139.49,0.02223174]
[1642447659334,45.51314087,139.55,139.49,0.02223174]
[1642447659534,56.26534087,139.55,139.49,0.02223174]
[1642447659734,0.25,139.54,139.49,0.02223174]
[1642447660934,0.25,139.54,139.48,43.64929516]
[1642447661136,11.003,139.54,139.48,43.64929516]
[1642447662134,1.4766747,139.53,139.48,43.64929516]
[1642447662836,0.25,139.52,139.48,0.02232851]
[1642447663840,45.1829402,139.52,139.48,0.02232851]
[1642447664239,51.1829402,139.52,139.48,0.02232851]
[1642447664739,61.9377402,139.52,139.48,0.02232851]
[1642447664938,55.9377402,139.52,139.48,0.02232851]
[1642447665139,61.9377402,139.52,139.48,0.02232851]
[1642447665941,61.9377402,139.52,139.45,34.87816312]
[1642447669443,11.0048,139.52,139.46,0.25]
[1642447669844,0.25,139.52,139.46,0.25]
[1642447670143,5.35084389,139.53,139.46,0.25]
[1642447670343,5.35084389,139.53,139.46,24.5401]
[1642447670545,5.35084389,139.53,139.46,34.8301]
[1642447670844,16.10464389,139.53,139.46,34.5801]